bitfinex/quotes_SOLUSD_20240626
["timestamp","ask_amount","ask_price","bid_price","bid_amount"]
[1719414327937,27.55701027,137.97,137.85,21.9087]
[1719414328144,0.17,137.96,137.89,25.3817]
[1719414328445,7.2493,137.95,137.9,7.2514]
[1719414328615,20.0,137.94,137.9,7.2514]
[1719414329055,7.2486,137.96,137.91,18.1271]
[1719414329345,20.0,137.95,137.91,25.378]
[1719414329530,7.2485,137.96,137.91,25.378]
[1719414329843,20.0,137.95,137.91,25.378]
[1719414330216,27.249,137.95,137.91,18.1271]
[1719414330421,7.2501,137.93,137.88,18.1306]
[1719414330632,7.2496,137.94,137.89,7.252]
[1719414331431,7.2507,137.92,137.88,18.1306]
[1719414331637,20.0,137.95,137.88,18.1306]
[1719414331829,7.2502,137.93,137.88,25.3828]
[1719414332944,7.2497,137.94,137.89,7.252]
[1719414333130,7.2492,137.95,137.9,18.1286]
[1719414333331,7.2492,137.95,137.9,25.38]
[1719414333747,7.2496,137.94,137.9,18.1286]
[1719414334432,20.0,137.96,137.9,25.38]
[1719414334632,20.0,137.97,137.9,25.38]
[1719414334834,7.2495,137.94,137.9,18.1286]
[1719414335244,7.2495,137.94,137.9,25.3801]
[1719414335543,7.2501,137.93,137.87,18.3021]
[1719414336053,7.2501,137.93,137.88,7.2523]
[1719414336244,7.2501,137.93,137.89,7.252]
[1719414337248,7.2516,137.9,137.86,0.17]
[1719414337437,7.2513,137.91,137.86,7.2534]
[1719414337639,7.2513,137.91,137.87,7.253]
[1719414337838,7.2507,137.92,137.87,7.253]
[1719414338031,7.2511,137.91,137.87,7.253]
[1719414338232,7.2518,137.9,137.86,18.1343]
[1719414338749,7.2511,137.91,137.86,25.3878]
[1719414338922,7.252,137.9,137.86,18.1343]
[1719414339127,18.1268,137.92,137.85,6.5592]
[1719414339339,20.0,137.91,137.83,25.3924]
[1719414339654,24.95351531,137.91,137.83,25.3924]
[1719414340159,7.2538,137.86,137.81,29.4928]
[1719414340553,7.2533,137.87,137.82,7.2557]
[1719414340736,38.1322,137.88,137.81,29.4932]
[1719414340940,7.2538,137.86,137.82,7.2558]
[1719414341263,7.2555,137.83,137.78,23.0077]
[1719414341442,7.2558,137.82,137.78,15.7502]
[1719414342026,7.2558,137.82,137.77,31.6997]
[1719414342227,20.0,137.85,137.77,6.2965]
[1719414342761,7.2565,137.81,137.77,6.2965]
[1719414343249,7.2559,137.82,137.77,13.5549]
[1719414343457,20.0,137.85,137.77,6.2965]
[1719414343642,20.0,137.85,137.79,18.1427]
[1719414343838,7.2549,137.84,137.79,25.4001]
[1719414344050,20.0,137.83,137.79,25.4001]
[1719414344265,27.2553,137.83,137.79,18.1427]
[1719414345166,27.2553,137.83,137.79,25.4]
[1719414345357,20.0,137.83,137.79,25.4]
[1719414346248,27.2553,137.83,137.79,18.1427]
[1719414346645,27.2553,137.83,137.77,6.2965]
[1719414346646,20.0,137.83,137.77,6.2965]
[1719414346846,7.2564,137.81,137.77,6.2965]
[1719414347248,7.256,137.82,137.77,13.5548]
[1719414347456,20.0,137.84,137.78,7.2575]
[1719414347961,7.2561,137.82,137.77,13.5548]
[1719414349137,20.0,137.84,137.77,6.2965]
[1719414349337,7.257,137.8,137.77,6.2965]
[1719414349552,18.1389,137.83,137.77,6.2965]
[1719414349753,7.2574,137.79,137.77,6.2965]
[1719414350670,18.1389,137.83,137.77,6.2965]
[1719414350852,20.0,137.82,137.75,18.1485]
[1719414351164,7.2582,137.78,137.73,29.7748]
[1719414351669,20.0,137.82,137.73,22.5144]
[1719414351670,7.2589,137.77,137.73,22.5144]
[1719414351842,20.0,137.82,137.7,6.4302]
[1719414351843,18.1435,137.79,137.7,6.4302]
[1719414352049,18.1435,137.79,137.7,13.6918]
[1719414352050,7.2594,137.76,137.7,13.6918]
[1719414352248,7.2596,137.75,137.7,13.6918]
[1719414352656,7.2596,137.75,137.71,7.2614]
[1719414352855,7.2591,137.76,137.71,7.2614]
[1719414353164,7.2602,137.74,137.7,13.6923]
[1719414353361,7.2602,137.74,137.7,6.4302]
[1719414354071,7.2602,137.74,137.7,13.6922]
[1719414354269,15.8503,137.8,137.71,18.1532]
[1719414354467,7.2594,137.76,137.71,25.4145]
[1719414354773,7.2601,137.74,137.7,6.4302]
[1719414354982,7.2597,137.75,137.7,13.6921]
[1719414355548,7.2597,137.75,137.7,31.8473]
[1719414355772,7.2591,137.76,137.7,24.5854]
[1719414355945,15.8503,137.8,137.68,7.2631]
[1719414355946,7.2606,137.73,137.68,7.2631]
[1719414356765,7.2601,137.74,137.69,7.2625]
[1719414356944,3.49358308,137.78,137.69,18.1563]
[1719414357143,7.261,137.73,137.69,18.1563]
[1719414357375,7.2602,137.74,137.69,7.2626]
[1719414357669,7.2612,137.72,137.68,18.1577]
[1719414357964,7.2622,137.7,137.66,30.3725]
[1719414358179,18.1506,137.74,137.66,30.3725]
[1719414358180,7.2618,137.71,137.67,7.2635]
[1719414358356,7.2618,137.71,137.66,30.3724]
[1719414358556,7.2617,137.71,137.67,7.2634]
[1719414359048,7.2612,137.72,137.67,7.2634]
[1719414359876,7.2612,137.72,137.68,7.2632]
[1719414360175,7.2612,137.72,137.67,25.4228]
[1719414361083,7.2617,137.71,137.67,18.1593]
[1719414361502,18.1495,137.75,137.66,30.3723]
[1719414361681,7.2618,137.71,137.66,30.3723]
[1719414361866,7.2618,137.71,137.66,48.5329]
[1719414362068,7.2613,137.72,137.67,7.2636]
[1719414362505,7.262,137.71,137.66,48.5331]
[1719414364393,7.2613,137.72,137.66,41.2689]
[1719414364687,7.2613,137.72,137.67,7.2635]
[1719414364990,7.2617,137.71,137.67,7.2635]
[1719414365295,7.2617,137.71,137.66,48.533]
[1719414365869,18.97628308,137.74,137.66,6.4623]
[1719414366066,7.2632,137.68,137.64,7.2653]
[1719414366276,18.1556,137.7,137.63,23.316]
[1719414366482,7.2639,137.67,137.63,6.6514]
[1719414366684,7.2638,137.67,137.63,6.6514]
[1719414367008,7.2642,137.66,137.63,6.6514]
[1719414367172,7.2642,137.66,137.61,18.1672]
[1719414367975,7.2636,137.68,137.63,7.2655]
[1719414368172,18.1556,137.7,137.63,7.2655]
[1719414368473,27.263,137.69,137.64,7.2651]
[1719414368673,7.2633,137.68,137.63,25.4296]
[1719414368873,27.2628,137.69,137.64,7.2651]
[1719414369197,7.2622,137.7,137.65,25.4263]
[1719414369566,7.2631,137.69,137.65,18.1616]
[1719414369793,21.64618308,137.73,137.65,18.1616]
[1719414369973,21.64618308,137.73,137.69,7.2624]
[1719414369974,10.75418308,137.73,137.69,7.2624]
[1719414370286,10.75438308,137.73,137.68,7.2629]
[1719414371092,7.2612,137.72,137.67,25.4227]
[1719414371294,10.75428308,137.73,137.68,7.2631]
[1719414371588,3.49358308,137.73,137.69,7.2622]
[1719414371791,20.0,137.73,137.69,25.4188]
[1719414372488,27.2607,137.73,137.69,25.4188]
[1719414372791,27.2607,137.73,137.69,18.1566]
[1719414372990,20.0,137.73,137.69,25.419]
[1719414373797,7.2606,137.73,137.69,25.419]
[1719414373967,7.2606,137.73,137.69,18.1566]
[1719414374165,23.80049839,137.77,137.69,18.1566]
[1719414374397,20.0,137.76,137.69,18.1566]
[1719414374776,7.2597,137.75,137.7,7.2619]
[1719414375288,8.44709839,137.77,137.69,18.1566]
[1719414375289,7.2601,137.74,137.69,18.1566]
[1719414375490,8.44709839,137.77,137.66,15.0145]
[1719414375491,7.2624,137.7,137.66,33.174]
[1719414375793,7.263,137.69,137.66,15.0145]
[1719414375990,7.2623,137.7,137.66,15.0145]
[1719414376597,7.2623,137.7,137.66,22.2786]
[1719414377291,7.2612,137.72,137.67,25.4228]
[1719414377498,7.2607,137.73,137.68,7.2629]
[1719414377698,3.49265002,137.74,137.67,18.1592]
[1719414377699,7.262,137.71,137.67,18.1592]
[1719414377899,7.2612,137.72,137.67,25.4227]
[1719414378069,7.2612,137.72,137.68,7.2631]
[1719414378270,7.2612,137.72,137.67,25.4229]
[1719414378500,7.2612,137.72,137.68,7.263]
[1719414378687,7.2617,137.71,137.67,18.1592]
[1719414379394,7.2617,137.71,137.67,25.4228]
[1719414379593,7.2613,137.72,137.67,25.4228]
[1719414379795,3.49265002,137.74,137.66,22.2785]
[1719414380001,3.49265002,137.74,137.67,7.2637]
[1719414380002,7.2617,137.71,137.67,7.2637]
[1719414380391,7.2623,137.7,137.66,33.1749]
[1719414380594,7.2628,137.69,137.66,15.0145]
[1719414380899,7.264,137.67,137.65,6.1164]
[1719414381099,7.264,137.67,137.63,18.1637]
[1719414381702,18.1546,137.71,137.64,7.2652]
[1719414381902,7.2629,137.69,137.64,7.2652]
[1719414382504,7.2633,137.68,137.63,25.4293]
[1719414383079,27.2623,137.7,137.65,7.2646]
[1719414383295,7.263,137.69,137.64,7.2651]
[1719414383494,20.0,137.7,137.63,25.4294]
[1719414383703,7.2635,137.68,137.63,25.4294]
[1719414383888,7.2635,137.68,137.64,7.2652]
[1719414384092,20.0,137.71,137.63,18.1637]
[1719414384287,7.2643,137.66,137.62,29.2072]
[1719414384481,7.2649,137.65,137.62,21.941]
[1719414385600,7.2653,137.64,137.62,6.3823]
[1719414386605,16.34,137.69,137.62,24.5482]
[1719414386909,7.2649,137.65,137.62,6.3823]
[1719414387086,20.0,137.68,137.62,6.3823]
[1719414387087,7.2644,137.66,137.62,6.3823]
[1719414387687,7.2648,137.65,137.62,6.3823]
[1719414388383,7.2652,137.65,137.62,6.3823]
[1719414388898,7.2654,137.64,137.62,6.3823]
[1719414389291,7.2642,137.66,137.62,6.3823]
[1719414389694,7.2646,137.66,137.62,6.3823]
[1719414390004,20.0,137.68,137.62,13.6486]
[1719414390182,7.2658,137.64,137.6,0.8657344]
[1719414390381,20.0,137.63,137.6,8.1330344]
[1719414390796,27.2659,137.63,137.6,0.8657344]
[1719414391582,20.0,137.63,137.6,0.8657344]
[1719414391790,7.2662,137.63,137.6,0.8657344]
[1719414392417,7.2667,137.62,137.6,0.8657344]
[1719414394706,7.266,137.63,137.6,0.8657344]
[1719414395891,7.2664,137.62,137.6,0.8657344]
[1719414397207,7.2669,137.61,137.6,0.8657344]
[1719414400304,37.2669,137.61,137.6,0.8657344]
[1719414405497,57.2669,137.61,137.6,0.8657344]
[1719414406318,37.2669,137.61,137.6,0.8657344]
[1719414406507,50.34,137.61,137.53,6.5371]
[1719414406705,7.2704,137.55,137.53,6.5371]
[1719414407202,18.1717,137.58,137.5,25.453]
[1719414407403,7.2707,137.54,137.5,18.1805]
[1719414407617,7.2707,137.54,137.49,13.81]
[1719414407918,7.2712,137.53,137.49,13.81]
[1719414408122,18.1717,137.58,137.5,7.2725]
[1719414408305,18.1717,137.58,137.51,7.2718]
[1719414408908,7.2697,137.56,137.52,7.2715]
[1719414409222,7.2697,137.56,137.51,7.2717]
[1719414409615,7.2702,137.55,137.51,7.2717]
[1719414409814,7.2716,137.52,137.47,24.2366]
[1719414410000,7.2712,137.53,137.48,7.2734]
[1719414410201,7.272,137.52,137.47,31.5108]
[1719414410921,16.5421,137.56,137.47,24.2366]
[1719414411229,7.2713,137.53,137.48,7.2736]
[1719414411409,7.2708,137.54,137.49,7.2731]
[1719414412113,7.2702,137.55,137.49,18.183]
[1719414412315,7.2702,137.55,137.47,6.0515]
[1719414412316,7.2698,137.56,137.51,7.2716]
[1719414412500,7.2701,137.55,137.51,18.1804]
[1719414412705,8.38381531,137.59,137.47,42.4208]
[1719414412706,18.1716,137.58,137.48,18.1835]
[1719414412909,3.4303,137.59,137.48,18.1835]
[1719414413121,18.1741,137.56,137.48,18.1835]
[1719414413322,7.2713,137.53,137.48,25.4571]
[1719414413510,7.2707,137.54,137.48,18.1835]
[1719414413713,7.2707,137.54,137.49,7.273]
[1719414413916,7.2702,137.55,137.5,7.2725]
[1719414414117,4.95351531,137.58,137.5,18.1816]
[1719414414308,7.2693,137.57,137.52,7.2713]
[1719414414726,4.95351531,137.58,137.5,25.4542]
[1719414414912,7.2714,137.53,137.48,7.2737]
[1719414415109,18.1727,137.57,137.5,7.2723]
[1719414415311,7.2697,137.56,137.51,7.272]
[1719414415614,7.2694,137.57,137.51,25.4524]
[1719414415930,12.22231531,137.58,137.53,25.4484]
[1719414416310,4.95351531,137.58,137.54,7.2705]
[1719414416611,7.268,137.59,137.54,7.2705]
[1719414417512,7.2693,137.57,137.53,24.5102]
[1719414417826,48.1674,137.61,137.53,6.3326]
[1719414418226,7.2692,137.57,137.53,13.6036]
[1719414418535,7.2686,137.58,137.54,7.2705]
[1719414418735,7.268,137.59,137.54,7.2705]
[1719414418935,7.2682,137.59,137.54,25.4463]
[1719414419143,4.95351531,137.6,137.55,7.2699]
[1719414419342,7.2682,137.59,137.54,25.4466]
[1719414419637,7.2682,137.59,137.55,7.2699]
[1719414419845,4.95351531,137.6,137.56,25.4432]
[1719414420022,4.95351531,137.6,137.56,18.1737]
[1719414420220,4.95351531,137.6,137.56,25.443]
[1719414420412,12.22101531,137.6,137.56,18.1737]
[1719414420921,12.22101531,137.6,137.53,6.3326]
[1719414420922,7.269,137.57,137.53,24.5093]
[1719414421127,7.2691,137.57,137.53,13.6036]
[1719414421351,4.95351531,137.6,137.55,7.27]
[1719414421517,12.22111531,137.6,137.55,7.27]
[1719414421720,7.2681,137.59,137.54,7.2702]
[1719414422039,7.2697,137.56,137.53,6.3326]
[1719414422245,7.2704,137.55,137.51,18.1804]
[1719414422415,7.2704,137.55,137.5,7.2723]
[1719414422416,7.2711,137.54,137.5,6.2868]
[1719414422750,4.95351531,137.6,137.5,13.5594]
[1719414422751,7.2702,137.55,137.5,13.5594]
[1719414422908,7.2707,137.54,137.5,6.2868]
[1719414423332,7.2702,137.55,137.5,13.5593]
[1719414423513,0.17,137.59,137.51,18.1804]
[1719414423720,7.2701,137.55,137.51,25.4522]
[1719414423956,7.2701,137.55,137.51,18.1804]
[1719414424245,15.0557,137.58,137.5,6.2868]
[1719414424451,15.0557,137.58,137.46,6.9731344]
[1719414424452,36.352,137.55,137.46,6.9731344]
[1719414424613,15.0557,137.58,137.46,14.2475344]
[1719414424614,7.2725,137.51,137.46,14.2475344]
[1719414424817,7.2725,137.51,137.47,7.2742]
[1719414425036,7.2717,137.52,137.48,7.2737]
[1719414425228,7.2716,137.52,137.48,7.2737]
[1719414425438,7.2716,137.52,137.47,7.2741]
[1719414425827,18.1766,137.54,137.46,6.9731344]
[1719414426035,7.2729,137.5,137.46,6.9731344]
[1719414426726,7.2729,137.5,137.46,14.2479344]
[1719414427061,7.2723,137.51,137.46,14.2479344]
[1719414427266,7.2718,137.52,137.47,7.2742]
[1719414427558,7.2722,137.51,137.46,14.2478344]
[1719414427939,18.1792,137.52,137.46,0.8657344]
[1719414428261,7.2728,137.5,137.46,0.8657344]
[1719414428747,18.3479,137.53,137.46,8.1405344]
[1719414428955,7.2723,137.51,137.46,19.0526344]
[1719414429151,7.2718,137.52,137.47,7.2743]
[1719414429330,4.95351531,137.54,137.46,26.3272344]
[1719414429331,7.2722,137.51,137.46,26.3272344]
[1719414429664,4.95351531,137.54,137.46,26.3272344]
[1719414429665,4.95351531,137.54,137.46,19.0526344]
[1719414429951,7.2723,137.51,137.46,26.3270344]
[1719414430346,7.2732,137.49,137.46,0.8657344]
[1719414431553,23.13011531,137.54,137.46,0.8657344]
[1719414431850,5.29351531,137.53,137.46,0.8657344]
[1719414432031,7.2734,137.49,137.46,0.8657344]
[1719414432639,18.1803,137.52,137.46,0.8657344]
[1719414432842,7.2734,137.49,137.46,0.8657344]
[1719414433245,7.2739,137.48,137.46,0.8657344]
[1719414435146,7.2734,137.49,137.46,0.8657344]
[1719414435558,7.2729,137.5,137.46,0.8657344]
[1719414436155,5.12351531,137.53,137.49,7.2732]
[1719414436156,4.95351531,137.53,137.49,7.2732]
[1719414436358,30.0,137.5,137.48,25.4577]
[1719414436556,30.0,137.5,137.49,7.2732]
[1719414436750,30.0,137.5,137.48,18.1842]
[1719414436954,30.0,137.5,137.49,7.2732]
[1719414437134,30.0,137.5,137.48,18.1842]
[1719414437339,30.0,137.5,137.48,25.4578]
[1719414437538,26.7,137.51,137.48,25.4578]
[1719414438451,4.95351531,137.53,137.49,28.9903]
[1719414438643,26.7,137.55,137.51,7.2719]
[1719414439038,26.7,137.55,137.51,7.2716]
[1719414439353,26.7,137.55,137.52,7.2715]
[1719414439738,26.7,137.55,137.51,7.272]
[1719414440434,7.2701,137.55,137.5,18.1815]
[1719414440641,7.2707,137.54,137.5,18.1815]
[1719414440943,7.2698,137.56,137.51,7.2718]
[1719414441250,7.2698,137.56,137.5,18.1815]
[1719414441251,4.95351531,137.58,137.53,7.2711]
[1719414441471,12.22221531,137.58,137.53,7.2711]
[1719414441664,12.22221531,137.58,137.54,7.2705]
[1719414442255,4.95351531,137.58,137.54,7.2705]
[1719414442559,4.95351531,137.58,137.52,18.1789]
[1719414442754,4.95351531,137.58,137.54,7.2704]
[1719414442933,12.22201531,137.58,137.53,7.2709]
[1719414443139,7.269,137.57,137.53,7.2709]
[1719414443335,7.269,137.57,137.52,25.4503]
[1719414444058,12.22221531,137.58,137.53,7.2709]
[1719414444858,4.95351531,137.58,137.56,7.269]
[1719414445067,15.5679,137.62,137.54,6.5384]
[1719414445383,7.2667,137.62,137.57,7.2688]
[1719414445866,4.95351531,137.63,137.58,25.439]
[1719414446042,7.2663,137.62,137.58,18.1711]
[1719414446856,12.21951531,137.63,137.58,25.4393]
[1719414447064,7.2664,137.62,137.58,25.4393]
[1719414447251,7.2664,137.62,137.58,18.1711]
[1719414447453,7.2664,137.62,137.57,7.2688]
[1719414448060,7.2664,137.62,137.57,25.4413]
[1719414448665,12.21951531,137.63,137.58,7.2684]
[1719414449052,7.2664,137.62,137.58,7.2684]
[1719414449667,7.2664,137.62,137.57,25.4413]
[1719414449842,7.2678,137.6,137.55,7.2697]
[1719414450044,23.11821531,137.63,137.54,31.9843]
[1719414450045,7.2681,137.59,137.54,31.9843]
[1719414450263,4.95351531,137.62,137.56,7.2691]
[1719414450560,7.267,137.61,137.56,7.2691]
[1719414450777,4.95351531,137.62,137.59,7.2677]
[1719414450965,7.2653,137.64,137.59,18.1695]
[1719414451143,7.266,137.63,137.59,18.1695]
[1719414451340,340.248101,137.66,137.56,18.1729]
[1719414451544,7.2669,137.61,137.57,7.2689]
[1719414451761,7.2669,137.61,137.56,25.4422]
[1719414452161,7.2693,137.57,137.54,6.5384]
[1719414452362,7.2687,137.58,137.54,6.5384]
[1719414453045,18.1677,137.61,137.54,6.5384]
[1719414453046,7.2693,137.57,137.54,6.5384]
[1719414453255,15.1964,137.6,137.52,7.2715]
[1719414453461,18.5087053,137.6,137.52,7.2715]
[1719414453660,7.2692,137.57,137.52,25.4506]
[1719414453858,7.2692,137.57,137.53,7.271]
[1719414455055,7.2687,137.58,137.53,7.271]
[1719414455966,7.2687,137.58,137.54,7.2705]
[1719414456165,7.2682,137.59,137.54,7.2705]
[1719414456371,7.268,137.59,137.54,25.4468]
[1719414456876,7.268,137.59,137.55,7.2699]
[1719414457073,18.5087053,137.6,137.54,18.1764]
[1719414457277,7.2686,137.58,137.53,7.2707]
[1719414457454,7.2686,137.58,137.54,7.2705]
[1719414457881,7.2692,137.57,137.53,18.1775]
[1719414458383,7.2692,137.57,137.53,25.4486]
[1719414458870,7.2692,137.57,137.53,18.1775]
[1719414459370,7.2702,137.55,137.5,31.5689]
[1719414460162,53.39,137.58,137.49,7.2732]
[1719414460163,7.2709,137.54,137.49,7.2732]
[1719414460469,7.2702,137.55,137.5,25.4538]
[1719414460975,7.2707,137.54,137.5,18.1816]
[1719414461202,7.2711,137.53,137.48,18.1844]
[1719414461369,7.2707,137.54,137.49,7.2731]
[1719414461883,71.5625,137.58,137.46,7.1626344]
[1719414461884,0.17,137.53,137.46,7.1626344]
[1719414462180,7.2721,137.52,137.47,25.4598]
[1719414463453,30.0,137.53,137.47,18.1856]
[1719414463454,7.2722,137.51,137.47,18.1856]
[1719414463855,7.2718,137.52,137.47,25.4598]
[1719414465072,7.2723,137.51,137.46,14.4373344]
[1719414465281,7.2728,137.5,137.46,7.1626344]
[1719414465468,7.2724,137.51,137.46,14.4373344]
[1719414465970,7.2718,137.52,137.47,7.2742]
[1719414467761,7.2722,137.51,137.46,32.6242344]
[1719414468475,30.0,137.53,137.46,25.3496344]
[1719414469076,7.2724,137.51,137.46,32.6241344]
[1719414470867,7.2717,137.52,137.47,7.274]
[1719414471264,7.2723,137.51,137.46,32.6242344]
[1719414472180,7.2718,137.52,137.46,25.3496344]
[1719414472369,7.2722,137.51,137.46,32.6242344]
[1719414475164,7.2718,137.52,137.47,7.2741]
[1719414475383,30.0,137.53,137.49,7.2731]
[1719414476181,37.2712,137.53,137.48,25.4574]
[1719414476393,7.2716,137.52,137.48,25.4574]
[1719414476561,30.0,137.53,137.49,7.2732]
[1719414476975,7.2709,137.54,137.49,7.2732]
[1719414477191,15.4865,137.55,137.48,44.8839]
[1719414477491,15.4865,137.55,137.48,52.1572]
[1719414477492,7.2712,137.53,137.48,52.1572]
[1719414477695,7.2712,137.53,137.49,7.2732]
[1719414478598,7.2712,137.53,137.48,25.4574]
[1719414478892,7.2701,137.55,137.5,7.2726]
[1719414479097,7.2698,137.56,137.51,26.7]
[1719414479268,33.9693,137.57,137.52,7.2716]
[1719414479466,26.7,137.57,137.53,7.2709]
[1719414479679,399.8373,137.61,137.54,7.2705]
[1719414479680,7.2684,137.59,137.54,7.2705]
[1719414479883,30.0,137.55,137.54,7.2705]
[1719414480081,26.7,137.58,137.54,7.2705]
[1719414480300,33.9686,137.58,137.53,25.4487]
[1719414480499,33.9686,137.58,137.53,52.1487]
[1719414480673,399.8373,137.61,137.55,7.2699]
[1719414481002,268.36604283,137.62,137.55,25.445]
[1719414481003,7.2675,137.6,137.55,25.445]
[1719414481205,33.9675,137.6,137.55,18.1751]
[1719414481365,33.9675,137.6,137.55,52.1447]
[1719414481582,7.2679,137.59,137.55,52.1447]
[1719414481784,7.2675,137.6,137.55,52.1451]
[1719414482088,7.2675,137.6,137.55,25.4451]
[1719414482296,7.2675,137.6,137.55,52.1451]
[1719414482492,33.9671,137.61,137.56,33.9694]
[1719414482698,7.2671,137.61,137.56,7.2694]
[1719414482885,7.2671,137.61,137.55,18.1751]
[1719414483088,7.2671,137.61,137.56,7.2691]
[1719414483911,16.4755,137.64,137.58,7.2679]
[1719414484224,7.2653,137.64,137.59,7.2675]
[1719414484813,7.76604283,137.65,137.59,18.1695]
[1719414485024,7.2651,137.65,137.6,7.2672]
[1719414485343,7.2651,137.65,137.59,18.1695]
[1719414485344,33.2298,137.68,137.59,18.1695]
[1719414485613,33.2298,137.68,137.58,6.5014]
[1719414485614,37.40350558,137.68,137.58,6.5014]
[1719414486190,11.43720558,137.68,137.63,7.2655]
[1719414486398,4.17370558,137.68,137.62,18.1652]
[1719414486595,4.17370558,137.68,137.59,18.1687]
[1719414486796,7.2651,137.65,137.6,7.2672]
[1719414487005,16.2257,137.66,137.58,6.5014]
[1719414487318,18.1625,137.65,137.58,6.5014]
[1719414487684,3.4303,137.68,137.58,24.672]
[1719414487685,4.17463864,137.64,137.58,24.672]
[1719414487991,7.2653,137.64,137.59,7.2679]
[1719414488194,7.2663,137.63,137.58,31.9403]
[1719414488718,18.1609,137.66,137.58,6.5014]
[1719414489020,7.2666,137.62,137.58,6.5014]
[1719414489725,7.2669,137.61,137.57,15.4923]
[1719414489910,68.5611,137.63,137.54,6.445]
[1719414490108,68.5611,137.63,137.5,22.6241]
[1719414490109,7.2698,137.56,137.5,22.6241]
[1719414490339,7.2698,137.56,137.51,7.2721]
[1719414490828,7.269,137.58,137.52,7.2714]
[1719414491043,7.2692,137.57,137.52,7.2714]
[1719414491202,7.2696,137.56,137.51,25.4519]
[1719414491703,7.2679,137.59,137.54,7.2701]
[1719414491907,4.34463864,137.62,137.5,22.6241]
[1719414492129,18.1676,137.61,137.52,18.1781]
[1719414492432,71.6676,137.61,137.5,22.6241]
[1719414492734,7.2697,137.56,137.51,25.4522]
[1719414493141,7.2701,137.55,137.51,18.1801]
[1719414493431,18.1703,137.59,137.51,25.452]
[1719414493604,18.1703,137.59,137.52,7.2716]
[1719414494235,7.2692,137.57,137.52,7.2716]
[1719414494529,4.17463864,137.6,137.53,18.1775]
[1719414494742,7.2679,137.59,137.54,7.2704]
[1719414495232,7.2665,137.62,137.57,7.2689]
[1719414495423,30.0,137.58,137.57,7.2689]
[1719414495609,7.2665,137.62,137.57,7.2689]
[1719414495812,22.497,137.63,137.58,7.2684]
[1719414496112,7.2667,137.62,137.57,18.1724]
[1719414496344,15.2311,137.63,137.59,7.2678]
[1719414496505,11.44003864,137.64,137.59,25.4376]
[1719414496706,18.40536189,137.66,137.61,7.2665]
[1719414496911,7.2649,137.65,137.6,7.2673]
[1719414497107,11.14086189,137.66,137.61,7.2667]
[1719414497320,11.14086189,137.66,137.59,18.1698]
[1719414497927,7.2646,137.66,137.61,7.2669]
[1719414498130,7.2634,137.68,137.63,7.2658]
[1719414498726,7.2637,137.67,137.62,7.2661]
[1719414498930,4.17463864,137.69,137.63,7.2656]
[1719414498931,7.2634,137.68,137.63,7.2656]
[1719414499326,7.2634,137.68,137.62,7.2661]
[1719414499715,7.2634,137.68,137.63,7.2658]
[1719414500352,4.17463864,137.69,137.65,7.2646]
[1719414500613,7.2627,137.69,137.64,7.2651]
[1719414501014,7.5458123,137.71,137.65,7.2646]
[1719414501015,7.2622,137.7,137.65,7.2646]
[1719414501938,16.112,137.72,137.65,7.2646]
[1719414501939,7.2628,137.69,137.65,18.1619]
[1719414502518,7.2623,137.7,137.65,25.4266]
[1719414503246,7.2622,137.7,137.65,25.4265]
[1719414504947,7.2626,137.69,137.65,25.4265]
[1719414505135,7.2626,137.69,137.65,18.1619]
[1719414505829,7.264,137.67,137.62,18.1647]
[1719414506159,7.264,137.67,137.62,7.266]